bitfinex-derivatives/quotes_SOLF0:USTF0_20250114
["timestamp","ask_amount","ask_price","bid_price","bid_amount"]
[1736861467068,32.1460765,188.65,188.47,32.1460765]
[1736861467362,32.1460765,188.65,188.5,32.1460765]
[1736861467568,32.1460765,188.68,188.5,32.1460765]
[1736861467757,32.1460765,188.68,188.46,2.6542]
[1736861467758,32.1460765,188.65,188.47,32.1460765]
[1736861467961,2.6522,188.61,188.47,34.8000765]
[1736861468160,32.1460765,188.68,188.53,32.1460765]
[1736861468368,1.5969,188.7,188.56,32.1460765]
[1736861468559,2.6512,188.68,188.56,32.1460765]
[1736861468760,1.5969,188.7,188.56,32.1460765]
[1736861468961,1.5969,188.7,188.53,32.1460765]
[1736861469171,2.6518,188.64,188.53,32.1460765]
[1736861469375,1.5969,188.7,188.53,32.1460765]
[1736861469567,1.6986,188.72,188.56,32.1460765]
[1736861469864,4.7346,188.81,188.63,32.1460765]
[1736861470069,34.7962765,188.75,188.62,2.6519]
[1736861470272,32.1460765,188.75,188.6,32.1460765]
[1736861470676,32.1460765,188.72,188.56,32.1460765]
[1736861470872,32.1460765,188.73,188.56,32.1460765]
[1736861471077,32.1460765,188.73,188.53,32.1460765]
[1736861471273,32.1460765,188.67,188.5,32.1460765]
[1736861471476,32.1460765,188.67,188.47,32.1460765]
[1736861471677,32.1460765,188.7,188.51,32.1460765]
[1736861471880,32.1460765,188.7,188.54,34.7990765]
[1736861472080,32.1460765,188.77,188.61,32.1460765]
[1736861472384,3.1858,188.81,188.67,32.1460765]
[1736861472584,1.6149,188.81,188.67,32.1460765]
[1736861472773,32.1460765,188.88,188.7,32.1460765]
[1736861473077,32.1460765,188.88,188.74,32.1460765]
[1736861473384,1.5898,188.89,188.74,32.1460765]
[1736861473682,32.1460765,188.85,188.68,32.1460765]
[1736861473883,32.1460765,188.82,188.65,32.1460765]
[1736861474080,32.1460765,188.79,188.62,32.1460765]
[1736861474287,1.5898,188.89,188.46,32.1460765]
[1736861474288,32.1460765,188.76,188.59,32.1460765]
[1736861474579,32.1460765,188.82,188.46,32.1460765]
[1736861474580,32.1460765,188.7,188.53,32.1460765]
[1736861474785,32.1460765,188.64,188.47,32.1460765]
[1736861474978,32.1460765,188.61,188.47,32.1460765]
[1736861475175,32.1460765,188.61,188.44,32.1460765]
[1736861475479,32.1460765,188.61,188.37,32.1460765]
[1736861475480,32.1460765,188.64,188.47,32.1460765]
[1736861475782,32.1460765,188.55,188.41,32.1460765]
[1736861475976,2.6529,188.56,188.45,2.6543]
[1736861476181,32.1460765,188.73,188.41,32.1460765]
[1736861476382,32.1460765,188.65,188.48,32.1460765]
[1736861476688,32.1460765,188.65,188.51,32.1460765]
[1736861476885,32.1460765,188.65,188.48,32.1460765]
[1736861477187,2.6518,188.64,188.53,32.1460765]
[1736861477380,32.1460765,188.74,188.59,32.1460765]
[1736861477581,4.9551,188.75,188.59,32.1460765]
[1736861477778,32.1460765,188.82,188.62,32.1460765]
[1736861477977,32.1460765,188.82,188.65,32.1460765]
[1736861478589,5.0295,188.9,188.71,32.1460765]
[1736861478785,2.6488,188.85,188.71,34.7966765]
[1736861478986,37.1755765,188.9,188.68,32.1460765]
[1736861478987,32.1460765,188.87,188.68,32.1460765]
[1736861479187,32.1460765,188.78,188.62,32.1460765]
[1736861479682,32.1460765,188.82,188.68,32.1460765]
[1736861479886,32.1460765,188.85,188.7,2.6507]
[1736861480087,32.1460765,188.85,188.68,32.1460765]
[1736861480286,32.1460765,188.88,188.71,32.1460765]
[1736861480485,32.1460765,188.85,188.68,32.1460765]
[1736861480782,32.1460765,188.82,188.65,32.1460765]
[1736861481090,32.1460765,188.82,188.65,34.7975765]
[1736861481289,32.1460765,188.85,188.68,32.1460765]
[1736861481590,32.1460765,188.85,188.55,32.1460765]
[1736861481591,32.1460765,188.88,188.71,32.1460765]
[1736861481780,32.1460765,188.88,188.64,32.1460765]
[1736861481781,32.1460765,188.9,188.74,32.1460765]
[1736861481982,32.1460765,189.09,188.78,32.1460765]
[1736861481983,32.1460765,188.96,188.78,32.1460765]
[1736861482186,1.6376,188.98,188.81,32.1460765]
[1736861482386,2.6477,188.93,188.82,31.82418805]
[1736861482586,31.82418805,188.97,188.82,31.82418805]
[1736861482791,31.82418805,188.94,188.79,31.82418805]
[1736861482991,31.82418805,188.91,188.75,2.6501]
[1736861483289,31.82418805,188.85,188.38,15.99]
[1736861483489,31.82418805,188.82,188.64,31.82418805]
[1736861483891,31.82418805,188.9,188.71,31.82418805]
[1736861484085,31.82418805,188.87,188.71,31.82418805]
[1736861484287,31.82418805,188.9,188.71,31.82418805]
[1736861484585,31.82418805,188.9,188.71,34.47478805]
[1736861484789,31.82418805,188.9,188.71,31.82418805]
[1736861484992,31.82418805,188.81,188.65,31.82418805]
[1736861485386,2.6505,188.73,188.61,31.82418805]
[1736861485590,31.82418805,188.78,188.61,31.82418805]
[1736861486290,31.82418805,188.86,188.68,31.82418805]
[1736861486491,31.82418805,188.86,188.71,31.82418805]
[1736861486893,31.82418805,188.89,188.71,31.82418805]
[1736861487093,1.5549,188.97,188.64,31.82418805]
[1736861487094,31.82418805,188.95,188.77,31.82418805]
[1736861487399,3.1032,188.99,188.8,31.82418805]
[1736861487699,3.1032,188.99,188.83,31.82418805]
[1736861487890,3.1032,188.99,188.73,31.82418805]
[1736861488092,2.6484,188.88,188.78,34.47378805]
[1736861488396,31.82418805,188.97,188.81,31.82418805]
[1736861488795,31.82418805,188.94,188.78,31.82418805]
[1736861488994,31.82418805,188.88,188.73,31.82418805]
[1736861489200,2.6496,188.79,188.7,35.33124805]
[1736861489395,31.82418805,188.85,188.7,32.68054805]
[1736861489699,31.82418805,188.79,188.7,0.85636]
[1736861489902,31.82418805,188.76,188.7,0.85636]
[1736861490390,31.82418805,188.8,188.7,0.85636]
[1736861490590,1.6399,188.81,188.7,0.85636]
[1736861491089,31.82418805,188.77,188.7,0.85636]
[1736861491290,2.6506,188.72,188.7,0.85636]
[1736861491701,31.82418805,188.73,188.55,31.82418805]
[1736861491897,31.82418805,188.73,188.49,31.82418805]
[1736861491898,31.82418805,188.66,188.49,31.82418805]
[1736861492096,31.82418805,188.63,188.46,31.82418805]
[1736861492297,2.6528,188.57,188.43,34.47878805]
[1736861492596,1.678,188.62,188.46,31.82418805]
[1736861493295,31.82418805,188.57,188.43,31.82418805]
[1736861493495,1.678,188.62,188.44,31.82418805]
[1736861493700,1.5521,188.72,188.5,31.82418805]
[1736861493899,31.82418805,188.68,188.55,2.6529]
[1736861494098,31.82418805,188.68,188.53,31.82418805]
[1736861494298,31.82418805,188.68,188.46,31.82418805]
[1736861494299,31.82418805,188.65,188.46,31.82418805]
[1736861494503,2.6523,188.6,188.48,2.6539]
[1736861494693,31.82418805,188.56,188.4,31.82418805]
[1736861494891,2.6532,188.54,188.41,2.6549]
[1736861495092,31.82418805,188.56,188.4,31.82418805]
[1736861495293,31.82418805,188.62,188.43,31.82418805]
[1736861495493,31.82418805,188.54,188.4,31.82418805]
[1736861495702,31.82418805,188.54,188.37,31.82418805]
[1736861495899,31.82418805,188.54,188.4,31.82418805]
[1736861496104,31.82418805,188.57,188.4,31.82418805]
[1736861496602,31.82418805,188.54,188.37,31.82418805]
[1736861496793,31.82418805,188.48,188.31,31.82418805]
[1736861497706,31.82418805,188.48,188.34,31.82418805]
[1736861497903,31.82418805,188.51,188.34,31.82418805]
[1736861498099,2.6538,188.49,188.39,2.6552]
[1736861498296,31.82418805,188.51,188.34,31.82418805]
[1736861498604,2.6546,188.44,188.34,2.6558]
[1736861498802,31.82418805,188.48,188.34,2.6558]
[1736861499101,31.82418805,188.48,188.31,31.82418805]
[1736861499503,31.82418805,188.51,188.37,31.82418805]
[1736861499707,4.8931,188.54,188.43,31.82418805]
[1736861499897,3.2043,188.54,188.43,31.82418805]
[1736861500097,1.6959,188.63,188.46,31.82418805]
[1736861500407,1.6959,188.63,188.49,31.82418805]
[1736861500408,4.9709,188.63,188.49,31.82418805]
[1736861501107,2.6521,188.62,188.49,31.82418805]
[1736861501308,1.6473,188.63,188.55,31.82418805]
[1736861501503,3.3236,188.72,188.55,31.82418805]
[1736861501708,3.3236,188.72,188.58,31.82418805]
[1736861502407,2.6512,188.68,188.55,31.82418805]
[1736861502610,31.82418805,188.64,188.49,31.82418805]
[1736861502803,31.82418805,188.58,188.43,31.82418805]
[1736861503002,31.82418805,188.61,188.46,31.82418805]
[1736861503201,31.82418805,188.58,188.42,31.82418805]
[1736861503409,31.82418805,188.55,188.43,2.6546]
[1736861503603,31.82418805,188.52,188.36,31.82418805]
[1736861503803,31.82418805,188.48,188.33,31.82418805]
[1736861504405,31.82418805,188.45,188.3,31.82418805]
[1736861504611,1.5679,188.51,188.37,31.82418805]
[1736861505007,2.6537,188.5,188.4,2.655]
[1736861505212,1.5679,188.51,188.37,31.82418805]
[1736861505512,4.2215,188.51,188.4,2.655]
[1736861505816,4.2215,188.51,188.37,31.82418805]
[1736861506011,1.5679,188.51,188.4,31.82418805]
[1736861506215,4.2747,188.54,188.4,31.82418805]
[1736861506412,4.2747,188.54,188.43,31.82418805]
[1736861506613,2.6536,188.51,188.42,2.6547]
[1736861506808,31.82418805,188.49,188.34,31.82418805]
[1736861507012,1.6215,188.54,188.3,31.82418805]
[1736861507317,31.82418805,188.39,188.2,0.8436]
[1736861507517,31.82418805,188.39,188.24,31.82418805]
[1736861507711,31.82418805,188.46,188.21,31.82418805]
[1736861507712,2.6551,188.4,188.3,2.6564]
[1736861508009,1.6559,188.45,188.27,31.82418805]
[1736861508216,1.6215,188.54,188.4,31.82418805]
[1736861508408,3.2206,188.53,188.4,31.82418805]
[1736861508608,3.2206,188.53,188.37,31.82418805]
[1736861508609,1.5739,188.53,188.43,31.82418805]
[1736861508813,2.6526,188.58,188.49,2.6537]
[1736861509010,31.82418805,188.65,188.37,31.82418805]
[1736861509217,31.82418805,188.59,188.43,31.82418805]
[1736861509409,2.6533,188.53,188.44,2.6544]
[1736861509812,31.82418805,188.56,188.44,2.6544]
[1736861510005,31.82418805,188.56,188.41,2.6549]
[1736861510211,31.82418805,188.53,188.37,31.82418805]
[1736861510419,31.82418805,188.5,188.34,31.82418805]
[1736861510721,31.82418805,188.5,188.38,2.6553]
[1736861511016,31.82418805,188.43,188.25,31.82418805]
[1736861511218,31.82418805,188.46,188.28,31.82418805]
[1736861511620,31.82418805,188.43,188.25,31.82418805]
[1736861511923,31.82418805,188.4,188.22,31.82418805]
[1736861512217,31.82418805,188.43,188.25,31.82418805]
[1736861512419,31.82418805,188.4,188.25,31.82418805]
[1736861512619,31.82418805,188.4,188.22,31.82418805]
[1736861512813,31.82418805,188.4,188.32,2.6562]
[1736861513019,31.82418805,188.37,188.22,31.82418805]
[1736861513414,2.6557,188.36,188.28,2.6567]
[1736861513619,31.82418805,188.37,188.28,2.6567]
[1736861513921,34.47928805,188.4,188.31,2.6563]
[1736861514220,31.82418805,188.43,188.25,31.82418805]
[1736861514417,31.82418805,188.46,188.31,31.82418805]
[1736861514618,33.47088805,188.52,188.34,31.82418805]
[1736861514813,1.6467,188.52,188.37,31.82418805]
[1736861515019,37.76478805,188.55,188.4,31.82418805]
[1736861515214,35.11168805,188.55,188.4,31.82418805]
[1736861515419,3.2875,188.55,188.4,31.82418805]
[1736861515621,2.6532,188.54,188.4,31.82418805]
[1736861515821,35.11168805,188.55,188.37,31.82418805]
[1736861516021,31.82418805,188.61,188.42,31.82418805]
[1736861516222,1.5664,188.62,188.48,31.82418805]
[1736861516717,31.82418805,188.61,188.52,2.6534]
[1736861516920,31.82418805,188.61,188.44,31.82418805]
[1736861517319,34.47678805,188.58,188.41,31.82418805]
[1736861517519,31.82418805,188.55,188.41,31.82418805]
[1736861517723,31.82418805,188.55,188.37,31.82418805]
[1736861517919,31.82418805,188.52,188.37,31.82418805]
[1736861518119,31.82418805,188.52,188.34,31.82418805]
[1736861518321,31.82418805,188.52,188.37,31.82418805]
[1736861518520,31.82418805,188.52,188.34,31.82418805]
[1736861518818,31.82418805,188.49,188.34,31.82418805]
[1736861519124,31.82418805,188.43,188.26,31.82418805]
[1736861519321,1.7001,188.48,188.26,31.82418805]
[1736861519520,1.5534,188.47,188.4,2.655]
[1736861519816,4.3542,188.48,188.35,31.82418805]
[1736861519817,1.7001,188.48,188.35,31.82418805]
[1736861520023,1.5686,188.51,188.38,31.82418805]
[1736861520817,31.82418805,188.46,188.32,31.82418805]
[1736861521120,1.5686,188.51,188.35,31.82418805]
[1736861521625,31.82418805,188.58,188.44,31.82418805]
[1736861521926,1.64,188.62,188.41,31.82418805]
[1736861522118,31.82418805,188.6,188.44,31.82418805]
[1736861522320,4.292,188.62,188.54,2.6531]
[1736861522523,4.292,188.62,188.38,0.8495]
[1736861522524,31.82418805,188.67,188.5,31.82418805]
[1736861522717,5.0092,188.72,188.53,31.82418805]
[1736861522918,31.82418805,188.7,188.53,31.82418805]
[1736861523217,31.82418805,188.64,188.47,31.82418805]
[1736861523415,31.82418805,188.67,188.61,2.652]
[1736861523620,5.0092,188.72,188.59,31.82418805]
[1736861523828,3.3207,188.72,188.59,31.82418805]
[1736861524014,31.82418805,188.78,188.7,2.6507]
[1736861524327,31.82418805,188.78,188.62,31.82418805]
[1736861524515,31.82418805,188.75,188.59,31.82418805]
[1736861524718,31.82418805,188.69,188.52,31.82418805]
[1736861525028,31.82418805,188.63,188.49,114.62418805]
[1736861525225,31.82418805,188.6,188.46,31.82418805]
[1736861525419,31.82418805,188.57,188.43,31.82418805]
[1736861525625,31.82418805,188.64,188.46,31.82418805]
[1736861525826,31.82418805,188.64,188.49,31.82418805]
[1736861526119,31.82418805,188.64,188.43,31.82418805]
[1736861526321,31.82418805,188.57,188.4,31.82418805]
[1736861526521,31.82418805,188.54,188.38,0.8495]
[1736861526729,2.6535,188.52,188.37,31.82418805]
[1736861526928,2.6535,188.52,188.27,82.78]
[1736861526929,31.82418805,188.51,188.3,0.8495]
[1736861527123,2.6543,188.46,188.31,31.82418805]
[1736861527329,31.82418805,188.45,188.28,31.82418805]
[1736861527627,31.82418805,188.42,188.25,31.82418805]
[1736861528018,31.82418805,188.45,188.28,31.82418805]
[1736861528223,2.6545,188.45,188.37,2.6555]
[1736861528422,1.6612,188.5,188.34,31.82418805]
[1736861528619,1.6612,188.5,188.37,31.82418805]
[1736861528924,3.2512,188.51,188.37,31.82418805]
[1736861529125,31.82418805,188.45,188.31,31.82418805]
[1736861529428,31.82418805,188.48,188.31,31.82418805]
[1736861529826,3.2512,188.51,188.45,2.6543]
[1736861530124,31.82418805,188.6,188.43,31.82418805]
[1736861530325,2.6522,188.61,188.54,2.6531]
[1736861530526,4.9038,188.63,188.49,31.82418805]
[1736861530719,4.9038,188.63,188.52,31.82418805]
[1736861530919,1.6331,188.63,188.52,31.82418805]
[1736861531124,33.45728805,188.63,188.46,31.82418805]
[1736861531325,33.45728805,188.63,188.43,31.82418805]
[1736861531326,31.82418805,188.57,188.43,31.82418805]
[1736861531628,31.82418805,188.54,188.4,31.82418805]
[1736861531824,31.82418805,188.57,188.4,31.82418805]
[1736861532028,1.6331,188.63,188.46,31.82418805]
[1736861532229,1.6331,188.63,188.49,31.82418805]
[1736861532429,1.6331,188.63,188.52,31.82418805]
[1736861532628,3.2707,188.7,188.58,31.82418805]
[1736861532830,1.6331,188.72,188.61,31.82418805]
[1736861533028,1.6331,188.72,188.68,2.651]
[1736861533226,35.22368805,188.82,188.64,31.82418805]
[1736861533432,5.0433,188.82,188.67,31.82418805]
[1736861533631,3.3275,188.82,188.74,2.6502]
[1736861534028,35.15168805,188.82,188.67,31.82418805]
[1736861534333,31.82418805,188.76,188.61,31.82418805]
[1736861534533,31.82418805,188.73,188.57,31.82418805]
[1736861534734,31.82418805,188.73,188.6,2.6522]
[1736861535031,1.7158,188.75,188.6,31.82418805]
[1736861535228,31.82418805,188.81,188.64,31.82418805]
[1736861535431,33.53998805,188.81,188.64,31.82418805]
[1736861536028,31.82418805,188.75,188.57,31.82418805]
[1736861536225,2.651,188.69,188.6,2.6522]
[1736861536534,31.82418805,188.72,188.54,31.82418805]
[1736861536835,2.6509,188.7,188.54,31.82418805]
[1736861537135,31.82418805,188.72,188.57,31.82418805]
[1736861537333,31.82418805,188.69,188.56,2.6527]
[1736861537533,31.82418805,188.69,188.51,31.82418805]
[1736861537733,31.82418805,188.69,188.54,31.82418805]
[1736861537931,2.6506,188.72,188.57,31.82418805]
[1736861538133,31.82418805,188.71,188.57,31.82418805]
[1736861538336,31.82418805,188.68,188.51,31.82418805]
[1736861538533,31.82418805,188.62,188.48,31.82418805]
[1736861538732,31.82418805,188.59,188.42,31.82418805]
[1736861538926,31.82418805,188.59,188.46,2.6541]
[1736861539129,31.82418805,188.56,188.39,31.82418805]
[1736861539337,1.5962,188.58,188.39,31.82418805]
[1736861539338,1.6127,188.55,188.42,31.82418805]
[1736861539728,31.82418805,188.53,188.36,31.82418805]
[1736861539927,31.82418805,188.5,188.29,0.8456]
[1736861540135,1.5508,188.52,188.3,31.82418805]
[1736861540136,31.82418805,188.47,188.3,31.82418805]
[1736861540431,1.5508,188.52,188.29,0.8456]
[1736861540432,31.82418805,188.5,188.29,0.8456]
[1736861540637,1.5508,188.52,188.29,0.8456]
[1736861540638,2.654,188.48,188.36,31.82418805]
[1736861540937,1.5508,188.52,188.36,31.82418805]
[1736861541136,31.82418805,188.46,188.29,0.8456]
[1736861541431,31.82418805,188.46,188.28,31.82418805]
[1736861541432,31.82418805,188.43,188.28,31.82418805]
[1736861541638,31.82418805,188.43,188.19,31.82418805]
[1736861541639,31.82418805,188.4,188.25,31.82418805]
[1736861541945,2.6557,188.36,188.28,2.6567]
[1736861542143,31.82418805,188.37,188.22,31.82418805]
[1736861542340,31.82418805,188.34,188.19,31.82418805]
[1736861542539,31.82418805,188.31,188.16,31.82418805]
[1736861543045,2.6568,188.28,188.19,2.658]
[1736861543249,31.82418805,188.34,188.19,31.82418805]
[1736861543442,31.82418805,188.31,188.16,31.82418805]
[1736861543638,2.6567,188.29,188.19,2.6579]
[1736861543843,31.82418805,188.27,188.12,31.82418805]
[1736861544041,31.82418805,188.24,188.09,31.82418805]
[1736861544238,1.6811,188.26,188.09,31.82418805]
[1736861544843,31.82418805,188.22,188.06,96.14880373]
[1736861545048,31.82418805,188.19,188.06,64.32461568]
[1736861545246,2.6583,188.18,188.09,2.6593]
[1736861545449,31.82418805,188.22,188.06,96.14880373]
[1736861545846,1.6811,188.26,188.1,2.6592]
[1736861546046,1.6811,188.26,187.92,114.60418805]
[1736861546047,31.82418805,188.16,188.0,31.82418805]
[1736861546250,31.82418805,188.19,188.03,31.82418805]
[1736861546544,31.82418805,188.19,187.93,0.8495]
[1736861546545,1.6811,188.26,188.09,31.82418805]
[1736861546845,31.82418805,188.24,188.16,2.6584]
[1736861547150,1.6811,188.26,188.12,31.82418805]
[1736861547547,31.82418805,188.21,188.06,31.82418805]
[1736861547947,2.6582,188.18,188.08,2.6595]
[1736861548250,31.82418805,188.18,188.03,31.82418805]
[1736861548451,31.82418805,188.21,188.06,31.82418805]
[1736861548849,31.82418805,188.24,188.09,31.82418805]
[1736861549252,31.82418805,188.24,188.06,31.82418805]
[1736861549455,2.6576,188.23,188.06,31.82418805]
[1736861549650,31.82418805,188.21,188.06,31.82418805]
[1736861549953,34.48198805,188.21,188.1,2.6592]
[1736861550149,31.82418805,188.18,188.03,31.82418805]
[1736861550651,31.82418805,188.15,188.0,31.82418805]
[1736861551051,31.82418805,188.22,188.06,31.82418805]
[1736861551251,31.82418805,188.22,188.15,2.6586]
[1736861551447,31.82418805,188.25,188.09,31.82418805]
[1736861551948,31.82418805,188.13,187.99,31.82418805]
[1736861552249,31.82418805,188.1,187.96,31.82418805]
[1736861552854,34.48348805,188.1,188.01,2.6605]
[1736861553054,31.82418805,188.07,187.93,31.82418805]
[1736861553254,31.82418805,188.07,188.01,2.6606]
[1736861553454,31.82418805,188.13,187.99,31.82418805]
[1736861553649,31.82418805,188.13,187.96,31.82418805]
[1736861553856,31.82418805,188.1,187.96,31.82418805]
[1736861554055,31.82418805,188.1,187.85,64.4014504]
[1736861554056,31.82418805,188.02,187.85,64.4014504]
[1736861554252,31.82418805,187.98,187.82,31.82418805]
[1736861554456,31.82418805,187.98,187.85,31.82418805]
[1736861554756,31.82418805,187.98,187.82,31.82418805]
[1736861555157,31.82418805,187.95,187.79,31.82418805]
[1736861555456,31.82418805,187.95,187.76,0.8489]
[1736861555457,31.82418805,187.92,187.76,32.67308805]
[1736861555658,31.82418805,187.92,187.76,31.82418805]
[1736861555853,3.2504,188.0,187.73,31.82418805]
[1736861556056,31.82418805,187.96,187.8,31.82418805]
[1736861556258,1.6526,187.99,187.83,31.82418805]
[1736861556456,31.82418805,187.94,187.84,2.663]
[1736861556656,31.82418805,187.91,187.77,31.82418805]
[1736861556856,1.6526,187.99,187.73,1.06535982]
[1736861556857,31.82418805,187.94,187.8,31.82418805]
[1736861557058,31.82418805,187.95,187.8,31.82418805]
[1736861557257,31.82418805,187.92,187.77,31.82418805]
[1736861557558,31.82418805,187.89,187.83,2.663]
[1736861557756,31.82418805,187.86,187.71,31.82418805]
[1736861558054,31.82418805,187.83,187.68,31.82418805]
[1736861558253,31.82418805,187.8,187.65,31.82418805]
[1736861558655,3.3106,187.84,187.68,31.82418805]
[1736861559251,3.3106,187.84,187.71,31.82418805]
[1736861559657,1.5946,187.84,187.74,31.82418805]
[1736861559857,1.69,187.85,187.71,31.82418805]
[1736861560255,31.82418805,187.83,187.76,2.664]
[1736861560457,1.5626,187.84,187.71,31.82418805]
[1736861560754,3.2714,187.85,187.82,2.6632]
[1736861560960,31.82418805,187.9,187.74,31.82418805]
[1736861561459,31.82418805,187.87,187.71,31.82418805]
[1736861561661,31.82418805,187.84,187.68,31.82418805]
[1736861561850,31.82418805,187.81,187.74,2.6643]
[1736861562159,3.2171,187.86,187.71,31.82418805]
[1736861562660,1.6357,187.86,187.84,2.6629]
[1736861563155,1.5626,187.89,187.87,2.6625]
[1736861563359,1.5626,187.89,187.77,31.82418805]
[1736861563763,31.82418805,187.95,187.8,31.82418805]
[1736861564260,31.82418805,187.95,187.89,2.6623]
[1736861564457,31.82418805,187.95,187.8,31.82418805]
[1736861564656,1.6084,187.98,187.74,31.82418805]
[1736861564961,31.82418805,188.07,187.92,31.82418805]
[1736861565460,31.82418805,188.04,187.89,31.82418805]
[1736861565662,3.2824,188.09,187.86,31.82418805]
[1736861565663,31.82418805,188.01,187.86,31.82418805]
[1736861565856,31.82418805,187.98,187.83,31.82418805]
[1736861566560,31.82418805,187.98,187.8,31.82418805]
[1736861566861,31.82418805,187.92,187.77,31.82418805]
[1736861567258,31.82418805,187.95,187.77,31.82418805]
[1736861567560,0.32235,187.94,187.83,31.82418805]
[1736861567866,1.6296,188.03,187.83,31.82418805]
[1736861567867,1.6296,188.03,187.92,31.82418805]
[1736861568160,31.82418805,188.07,187.96,2.6612]
[1736861568459,31.82418805,188.07,187.92,31.82418805]
[1736861569056,31.82418805,188.1,187.92,31.82418805]
[1736861569258,31.82418805,188.1,188.04,2.6601]
[1736861569959,31.82418805,188.13,187.98,31.82418805]
[1736861570363,31.82418805,188.13,187.95,31.82418805]
[1736861570565,31.82418805,188.1,187.95,31.82418805]
[1736861570759,31.82418805,188.1,187.92,31.82418805]
[1736861571064,31.82418805,188.0,187.85,31.82418805]
[1736861571265,31.82418805,187.97,187.82,31.82418805]
[1736861571658,31.82418805,187.97,187.79,31.82418805]
[1736861571860,31.82418805,187.97,187.82,31.82418805]
[1736861572065,31.82418805,187.94,187.79,31.82418805]
[1736861572659,31.82418805,187.91,187.76,31.82418805]
[1736861572860,31.82418805,187.88,187.73,114.84418805]
[1736861573457,31.82418805,187.85,187.7,31.82418805]
[1736861573655,3.2088,187.87,187.7,31.82418805]
[1736861574056,31.82418805,187.85,187.66,0.8489]
[1736861574259,31.82418805,187.82,187.65,31.82418805]
[1736861574665,31.82418805,187.82,187.77,2.6639]
[1736861574865,31.82418805,187.82,187.65,31.82418805]
[1736861575056,31.82418805,187.82,187.68,31.82418805]
[1736861575466,31.82418805,187.82,187.65,31.82418805]
[1736861575862,34.48748805,187.82,187.74,2.6644]
[1736861576165,31.82418805,187.79,187.65,31.82418805]
[1736861576462,31.82418805,187.79,187.69,2.6651]
[1736861576668,31.82418805,187.79,187.62,31.82418805]
[1736861577162,31.82418805,187.76,187.7,2.6649]
[1736861577367,31.82418805,187.76,187.62,31.82418805]
[1736861577567,31.82418805,187.73,187.59,31.82418805]
[1736861578962,31.82418805,187.7,187.56,31.82418805]
[1736861579467,31.82418805,187.7,187.68,2.6652]
[1736861579666,31.82418805,187.7,187.56,31.82418805]
[1736861579864,31.82418805,187.7,187.53,31.82418805]
[1736861580267,31.82418805,187.67,187.61,2.6662]
[1736861580468,31.82418805,187.7,187.53,31.82418805]
[1736861580668,31.82418805,187.74,187.59,31.82418805]
[1736861580862,4.8119,187.75,187.7,2.6649]
[1736861581067,4.8119,187.75,187.59,31.82418805]
[1736861581068,4.8119,187.75,187.62,31.82418805]
[1736861581270,31.82418805,187.74,187.67,2.6653]
[1736861581464,31.82418805,187.71,187.56,31.82418805]
[1736861581673,4.8119,187.75,187.62,31.82418805]
[1736861581870,3.2611,187.75,187.73,2.6645]
[1736861582067,3.2611,187.75,187.59,31.82418805]
[1736861582370,3.2611,187.75,187.62,31.82418805]
[1736861582568,3.2611,187.75,187.65,31.82418805]
[1736861582767,31.82418805,187.86,187.71,31.82418805]
[1736861582973,1.6774,187.85,187.74,31.82418805]
[1736861583268,31.82418805,187.89,187.74,31.82418805]
[1736861583470,31.82418805,187.86,187.71,31.82418805]
[1736861584275,1.6774,187.88,187.74,31.82418805]
[1736861584476,1.6774,187.88,187.77,31.82418805]
[1736861585177,3.2242,187.97,187.8,31.82418805]
[1736861585472,4.7974,187.97,187.83,31.82418805]
[1736861585671,4.7974,187.97,187.74,31.82418805]
[1736861585672,31.82418805,187.95,187.8,31.82418805]
[1736861586073,31.82418805,187.95,187.77,31.82418805]
[1736861586274,31.82418805,187.95,187.8,31.82418805]
[1736861586773,31.82418805,187.92,187.77,39.01671053]
[1736861587276,31.82418805,187.95,187.87,2.6625]
[1736861587465,31.82418805,187.95,187.81,4.93240124]
[1736861587867,31.82418805,187.92,187.85,2.6628]
[1736861588067,31.82418805,187.92,187.82,7.19252248]
[1736861588375,34.48568805,187.95,187.87,2.6625]
[1736861588675,31.82418805,187.95,187.82,7.19252248]
[1736861589071,31.82418805,187.95,187.85,2.6627]
[1736861589270,31.82418805,187.92,187.83,7.19252248]
[1736861589476,31.82418805,187.89,187.83,7.19252248]
[1736861589871,31.82418805,187.95,187.81,31.82418805]
[1736861590275,31.82418805,187.95,187.79,12.13860683]
[1736861590573,4.7974,187.97,187.78,53.40175549]
[1736861590574,1.5732,187.97,187.87,31.82418805]
[1736861590877,34.48428805,188.05,187.96,2.6612]
[1736861591076,31.82418805,188.02,187.83,31.82418805]
[1736861591278,31.82418805,187.99,187.83,31.82418805]
[1736861591473,31.82418805,187.96,187.81,1.7081]
[1736861591771,31.82418805,187.96,187.88,28.77008992]
[1736861591974,31.82418805,187.93,187.88,26.19368992]
[1736861592166,31.82418805,187.9,187.88,23.61708992]
[1736861592368,1.6657,187.95,187.88,23.61708992]